bitfinex/quotes_BTCUSD_20240730
["timestamp","ask_amount","ask_price","bid_price","bid_amount"]
[1722350108182,0.00150202,66326.0,66321.0,0.0015542]
[1722350108378,0.07534716,66332.0,66321.0,0.0015542]
[1722350108379,0.00150202,66324.0,66321.0,0.0245542]
[1722350108579,0.00150202,66322.0,66321.0,0.1753352]
[1722350108857,0.00350202,66320.0,66319.0,0.01079259]
[1722350109029,0.00150202,66313.0,66310.0,0.10835]
[1722350109413,0.002,66318.0,66310.0,0.10835]
[1722350109414,0.07684918,66311.0,66310.0,0.10835]
[1722350109627,0.00150202,66311.0,66310.0,0.10835]
[1722350109838,0.00150202,66311.0,66310.0,0.04111631]
[1722350110068,0.00350202,66311.0,66310.0,0.03025]
[1722350110477,0.30511102,66311.0,66310.0,0.04425]
[1722350110647,0.52018521,66311.0,66310.0,0.014]
[1722350111210,1.06214009,66311.0,66310.0,0.014]
[1722350111410,1.27403625,66311.0,66310.0,0.014]
[1722350111990,1.27403625,66311.0,66294.0,0.079]
[1722350111991,0.00150202,66295.0,66294.0,0.079]
[1722350112630,0.00350202,66287.0,66286.0,0.03025]
[1722350112883,0.15436702,66284.0,66283.0,0.0817]
[1722350113092,0.15436702,66284.0,66278.0,0.000913]
[1722350113093,0.45611902,66281.0,66278.0,0.000913]
[1722350113291,1.21024206,66281.0,66278.0,0.000913]
[1722350113495,0.97219706,66281.0,66278.0,0.000913]
[1722350113694,1.27394206,66281.0,66278.0,0.000913]
[1722350114266,0.97219706,66281.0,66278.0,0.000913]
[1722350114502,0.06720202,66281.0,66278.0,0.000913]
[1722350114703,0.00150202,66281.0,66280.0,0.151788]
[1722350114905,0.00150202,66285.0,66281.0,0.0807]
[1722350115128,0.002,66288.0,66281.0,0.0807]
[1722350115129,0.00150202,66282.0,66281.0,0.0807]
[1722350115328,0.00150202,66282.0,66281.0,0.231572]
[1722350115454,0.00150202,66284.0,66282.0,0.15087]
[1722350115660,0.0656,66296.0,66281.0,0.08327042]
[1722350115661,0.00150202,66287.0,66281.0,0.08327042]
[1722350117747,0.00350202,66281.0,66280.0,0.000913]
[1722350117950,0.76163619,66281.0,66280.0,0.000913]
[1722350118345,0.15814619,66281.0,66280.0,0.000913]
[1722350118547,0.52119119,66281.0,66280.0,0.000913]
[1722350119482,0.52119119,66281.0,66280.0,0.014913]
[1722350120276,0.21567402,66281.0,66280.0,0.014913]
[1722350120467,0.00350202,66281.0,66280.0,0.014913]
[1722350120678,0.75786402,66281.0,66280.0,0.014913]
[1722350120868,1.33077269,66281.0,66280.0,0.014913]
[1722350121210,1.21024206,66281.0,66280.0,0.014913]
[1722350123197,1.21024206,66281.0,66280.0,0.000913]
[1722350124010,1.21024206,66281.0,66280.0,0.001913]
[1722350124150,1.21024206,66281.0,66280.0,0.000913]
[1722350124348,1.21024206,66281.0,66280.0,0.001913]
[1722350124757,1.21024206,66281.0,66280.0,0.000913]
[1722350125400,1.34546098,66281.0,66280.0,0.000913]
[1722350126012,1.21024206,66281.0,66280.0,0.000913]
[1722350126413,1.52198706,66281.0,66280.0,0.000913]
[1722350126611,1.65818706,66281.0,66280.0,0.000913]
[1722350126976,1.65818706,66281.0,66280.0,0.001913]
[1722350127177,1.65818706,66281.0,66280.0,0.000913]
[1722350127178,1.66818706,66281.0,66280.0,0.000913]
[1722350127295,1.27454206,66281.0,66280.0,0.000913]
[1722350127496,1.27454206,66281.0,66280.0,0.001913]
[1722350127720,1.27454206,66281.0,66280.0,0.000913]
[1722350128332,0.97279706,66281.0,66280.0,0.000913]
[1722350128541,1.65448706,66281.0,66280.0,0.000913]
[1722350128738,2.17898138,66281.0,66280.0,0.000913]
[1722350129177,2.48072638,66281.0,66280.0,0.000913]
[1722350129383,1.05797702,66258.0,66257.0,0.009339]
[1722350129585,1.27211006,66258.0,66257.0,0.009339]
[1722350130148,0.97026006,66258.0,66257.0,0.009339]
[1722350130519,0.51777702,66258.0,66257.0,0.009339]
[1722350130650,0.15442702,66258.0,66257.0,0.009339]
[1722350130853,0.00350202,66258.0,66257.0,0.015339]
[1722350131255,0.15442702,66258.0,66257.0,0.015339]
[1722350131675,0.45627702,66258.0,66257.0,0.015339]
[1722350132089,0.00350202,66258.0,66257.0,0.015339]
[1722350132282,0.15442702,66258.0,66257.0,0.015339]
[1722350132530,0.91253365,66258.0,66257.0,0.015339]
[1722350132879,0.91253365,66258.0,66257.0,0.009339]
[1722350133080,0.15442702,66258.0,66257.0,0.009339]
[1722350133289,0.45627702,66258.0,66257.0,0.012339]
[1722350133490,0.00350202,66258.0,66257.0,0.009339]
[1722350133692,0.45627702,66258.0,66257.0,0.0227954]
[1722350133878,0.15442702,66258.0,66257.0,0.0227954]
[1722350134085,0.15442702,66258.0,66257.0,0.0167954]
[1722350134298,0.15820043,66258.0,66257.0,0.009339]
[1722350134492,0.00350202,66258.0,66257.0,0.02479556]
[1722350134698,0.00150202,66258.0,66257.0,0.10799556]
[1722350134894,0.00350202,66258.0,66257.0,0.09999556]
[1722350135100,0.15442702,66258.0,66257.0,0.09999556]
[1722350135304,0.46005022,66258.0,66257.0,0.092539]
[1722350135580,0.46005022,66258.0,66257.0,0.009339]
[1722350136065,0.91253326,66258.0,66257.0,0.009339]
[1722350136288,1.27928326,66258.0,66257.0,0.009339]
[1722350136445,1.37053659,66258.0,66257.0,0.019339]
[1722350136764,1.37053659,66258.0,66257.0,0.009339]
[1722350136765,1.27928326,66258.0,66257.0,0.009339]
[1722350136967,1.27928326,66258.0,66257.0,0.017339]
[1722350137730,1.27928326,66258.0,66257.0,0.009339]
[1722350137932,0.97943326,66258.0,66257.0,0.009339]
[1722350138773,0.67758326,66258.0,66257.0,0.009339]
[1722350138992,0.00283,66278.0,66276.0,0.150882]
[1722350139179,0.00083,66278.0,66277.0,0.9690734]
[1722350139390,0.00083,66278.0,66277.0,0.96147798]
[1722350139526,0.00083,66278.0,66277.0,0.11937098]
[1722350139742,0.00083,66278.0,66277.0,0.89677798]
[1722350139950,0.02,66316.0,66294.0,0.482779]
[1722350139951,0.002,66295.0,66294.0,0.482779]
[1722350140157,0.002,66302.0,66294.0,0.1364062]
[1722350140410,0.50454115,66309.0,66299.0,0.03025]
[1722350140411,0.002,66301.0,66299.0,0.03025]
[1722350140819,0.002,66304.0,66300.0,0.03759702]
[1722350141027,0.002,66304.0,66303.0,0.181072]
[1722350141381,0.002,66304.0,66301.0,0.023]
[1722350141382,0.002,66305.0,66304.0,0.03025]
[1722350141741,0.002,66305.0,66304.0,0.0375891]
[1722350142771,0.07534716,66311.0,66304.0,0.0375891]
[1722350142772,0.22615116,66311.0,66304.0,0.0375891]
[1722350143002,0.002,66305.0,66304.0,0.0375891]
[1722350143334,0.002,66305.0,66304.0,0.0515891]
[1722350143932,0.002,66305.0,66304.0,0.0213391]
[1722350143933,0.75609,66305.0,66304.0,0.0213391]
[1722350144297,0.60508704,66305.0,66304.0,0.014]
[1722350144617,0.30345104,66305.0,66304.0,0.014]
[1722350144901,0.90672304,66305.0,66304.0,0.014]
[1722350145232,0.97192304,66305.0,66304.0,0.014]
[1722350145432,1.07812534,66305.0,66304.0,0.014]
[1722350145632,1.37976134,66305.0,66304.0,0.014]
[1722350145837,1.27355904,66305.0,66304.0,0.014]
[1722350146427,0.301683,66295.0,66284.0,0.083]
[1722350146654,0.002,66292.0,66288.0,0.44444115]
[1722350146873,0.002,66292.0,66286.0,0.03025]
[1722350147074,0.37700416,66301.0,66291.0,0.03025]
[1722350147075,0.002,66294.0,66291.0,0.03025]
[1722350147281,0.002,66294.0,66292.0,0.150846]
[1722350147483,0.002,66294.0,66292.0,0.00732823]
[1722350147687,0.002,66294.0,66292.0,0.15817523]
[1722350147928,0.07534716,66293.0,66292.0,0.00732823]
[1722350148099,1.023086,66293.0,66292.0,0.00732823]
[1722350148298,1.023086,66293.0,66286.0,0.014]
[1722350148299,0.152859,66287.0,66286.0,0.014]
[1722350148516,0.454577,66287.0,66286.0,0.014]
[1722350148918,0.002,66287.0,66286.0,0.014]
[1722350149116,0.96169218,66287.0,66286.0,0.014]
[1722350149318,1.21135448,66287.0,66286.0,0.014]
[1722350149636,0.002,66276.0,66275.0,0.0015542]
[1722350149836,0.454652,66276.0,66275.0,0.0015542]
[1722350150037,0.454652,66276.0,66275.0,0.00654406]
[1722350150198,0.002,66276.0,66270.0,0.0015542]
[1722350150412,0.150895,66271.0,66270.0,0.0015542]
[1722350150617,0.21553304,66275.0,66269.0,0.081]
[1722350150618,0.00270844,66274.0,66269.0,0.081]
[1722350150819,0.150894,66272.0,66269.0,0.081]
[1722350151043,0.15360344,66271.0,66270.0,0.0015542]
[1722350151412,0.00270844,66271.0,66270.0,0.0015542]
[1722350151966,0.00470844,66271.0,66270.0,0.0015542]
[1722350152523,0.002,66271.0,66270.0,0.00810707]
[1722350152724,0.002,66280.0,66273.0,0.301779]
[1722350152968,0.002,66280.0,66272.0,0.301786]
[1722350152969,0.00470844,66280.0,66274.0,0.00736405]
[1722350153331,0.002,66280.0,66275.0,0.023]
[1722350153500,0.002,66276.0,66275.0,0.03036207]
[1722350153704,0.002,66276.0,66275.0,0.00736207]
[1722350153876,0.454652,66276.0,66275.0,0.00736207]
[1722350154084,0.152888,66274.0,66273.0,0.03025]
[1722350154301,0.002,66274.0,66273.0,0.03025]
[1722350154448,0.454665,66274.0,66273.0,0.03025]
[1722350154658,0.152888,66274.0,66273.0,0.03682475]
[1722350154862,0.002,66274.0,66273.0,0.03025]
[1722350155278,0.002,66274.0,66273.0,0.03682381]
[1722350155499,0.002,66278.0,66273.0,0.04860619]
[1722350155699,0.301736,66283.0,66273.0,0.04860619]
[1722350155700,0.002,66276.0,66273.0,0.04860619]
[1722350155921,0.002,66276.0,66274.0,0.0015542]
[1722350156101,0.002,66276.0,66274.0,0.00812634]
[1722350156301,0.002,66276.0,66275.0,0.014]
[1722350156506,0.002,66277.0,66274.0,0.03682214]
[1722350156705,0.002,66278.0,66275.0,0.33134038]
[1722350156907,0.002,66280.0,66276.0,0.00149755]
[1722350157286,0.452638,66278.0,66277.0,0.00738765]
[1722350157693,0.756407,66277.0,66276.0,0.00149755]
[1722350157987,0.454652,66276.0,66275.0,0.014]
[1722350158164,0.60528504,66276.0,66275.0,0.014]
[1722350158371,0.002,66276.0,66275.0,0.014]
[1722350158750,0.002,66276.0,66275.0,0.02056967]
[1722350159153,0.002,66276.0,66275.0,0.00656967]
[1722350159779,0.002,66276.0,66272.0,0.00149755]
[1722350159957,0.150891,66273.0,66270.0,0.00149755]
[1722350160330,0.002,66271.0,66270.0,0.00149755]
[1722350160535,0.00270844,66274.0,66270.0,0.00149755]
[1722350160735,0.002,66271.0,66270.0,0.00149755]
[1722350161016,0.15560344,66271.0,66270.0,0.00149755]
[1722350161184,0.15560344,66271.0,66270.0,0.01549755]
[1722350161406,0.45739444,66271.0,66270.0,0.01549755]
[1722350161779,0.002,66271.0,66270.0,0.01549755]
[1722350161973,0.002,66271.0,66270.0,0.02667476]
[1722350162175,0.002,66271.0,66270.0,0.0155542]
[1722350162376,0.301764,66277.0,66270.0,0.0155542]
[1722350162377,0.002,66274.0,66270.0,0.1664502]
[1722350162603,0.002,66275.0,66270.0,0.0015542]
[1722350162810,0.002,66279.0,66270.0,0.014]
[1722350162963,0.002,66279.0,66274.0,0.03025]
[1722350163195,0.002,66278.0,66275.0,0.023]
[1722350163395,0.30443944,66285.0,66275.0,0.05325]
[1722350163396,0.002,66285.0,66275.0,0.05325]
[1722350163604,0.002,66285.0,66279.0,0.301754]
[1722350163859,0.002,66287.0,66281.0,0.0783]
[1722350164104,0.002,66292.0,66286.0,0.03025]
[1722350164284,0.0632,66297.0,66286.0,0.03025]
[1722350164285,0.002,66289.0,66286.0,0.181109]
[1722350164490,0.002,66291.0,66290.0,0.150852]
[1722350165021,0.002,66291.0,66290.0,0.023]
[1722350165223,0.002,66292.0,66290.0,0.173852]
[1722350165446,0.002,66292.0,66291.0,0.20601277]
[1722350165658,0.002,66292.0,66286.0,0.03025]
[1722350165659,0.152849,66292.0,66286.0,0.03025]
[1722350165866,0.002,66287.0,66286.0,0.03025]
[1722350166365,0.00270844,66289.0,66274.0,0.03025]
[1722350166366,0.15087,66282.0,66274.0,0.03025]
[1722350166530,0.454611,66282.0,66274.0,0.03025]
[1722350166723,0.002,66276.0,66275.0,0.1788]
[1722350166927,0.002,66276.0,66275.0,0.2018]
[1722350167104,0.002,66276.0,66269.0,0.301797]
[1722350167105,0.002,66276.0,66269.0,0.41784645]
[1722350167316,0.002,66278.0,66273.0,0.03025]
[1722350167515,0.002,66278.0,66275.0,0.150885]
[1722350167962,0.002,66278.0,66273.0,0.33203]
[1722350168172,0.150888,66274.0,66273.0,0.05409503]
[1722350168378,0.454665,66274.0,66273.0,0.03025]
[1722350169133,0.002,66270.0,66269.0,0.0752]
[1722350170093,0.002,66270.0,66256.0,0.0784]
[1722350170094,0.150925,66258.0,66256.0,0.0784]
[1722350170284,0.002,66258.0,66256.0,0.0784]
[1722350170561,0.002,66260.0,66256.0,0.0784]
[1722350170790,0.002,66261.0,66257.0,0.0190468]
[1722350171011,0.002,66261.0,66258.0,0.0015542]
[1722350171192,0.002,66265.0,66258.0,0.301846]
[1722350171401,0.48,66270.0,66259.0,0.301843]
[1722350171402,0.002,66268.0,66259.0,0.301843]
[1722350171602,0.002,66264.0,66257.0,0.0190468]
[1722350171818,0.482,66270.0,66266.0,0.150905]
[1722350172008,0.48,66270.0,66267.0,0.0791]
[1722350172234,0.48,66270.0,66260.0,0.11225]
[1722350172235,0.002,66268.0,66260.0,0.11225]
[1722350172388,0.002,66261.0,66260.0,0.082]
[1722350172566,0.152918,66261.0,66260.0,0.11907186]
[1722350172777,0.002,66261.0,66260.0,0.11907186]
[1722350173000,0.75659,66261.0,66260.0,0.01407186]
[1722350173465,0.152925,66258.0,66257.0,0.009339]
[1722350173591,0.756625,66258.0,66257.0,0.009339]
[1722350173793,0.756625,66258.0,66257.0,0.02060291]
[1722350173794,0.454775,66258.0,66257.0,0.02060291]
[1722350174197,0.454775,66258.0,66257.0,0.009339]
[1722350174804,0.454775,66258.0,66257.0,0.02060291]
[1722350175002,0.454775,66258.0,66257.0,0.009339]
[1722350175003,0.756625,66258.0,66257.0,0.009339]
[1722350175208,0.454775,66258.0,66257.0,0.009339]
[1722350175578,0.756625,66258.0,66257.0,0.009339]
[1722350175782,0.454775,66258.0,66257.0,0.009339]
[1722350176055,0.152925,66258.0,66257.0,0.009339]
[1722350176304,0.756625,66258.0,66257.0,0.023339]
[1722350176513,0.756625,66258.0,66257.0,0.02060291]
[1722350176708,1.29130138,66258.0,66257.0,0.009339]
[1722350176922,1.29130138,66258.0,66257.0,0.023339]
[1722350177122,1.63576089,66258.0,66257.0,0.023339]
[1722350177337,1.25171727,66258.0,66257.0,0.023339]
[1722350177540,0.79923284,66258.0,66257.0,0.023339]
[1722350177746,0.756625,66258.0,66257.0,0.023339]
[1722350177886,1.058475,66258.0,66257.0,0.023339]
[1722350178332,0.756625,66258.0,66257.0,0.009339]
[1722350178622,0.457775,66258.0,66257.0,0.009339]
[1722350178822,0.454775,66258.0,66257.0,0.009339]
[1722350178965,0.756625,66258.0,66257.0,0.009339]
[1722350179161,0.756625,66258.0,66257.0,0.011339]
[1722350179364,1.058475,66258.0,66257.0,0.011339]
[1722350179777,0.756625,66258.0,66257.0,0.011339]
[1722350179980,0.756625,66258.0,66257.0,0.009339]
[1722350179981,0.454775,66258.0,66257.0,0.009339]
[1722350180230,0.756625,66258.0,66257.0,0.009339]
[1722350180432,0.98475804,66258.0,66257.0,0.016339]
[1722350180635,1.28660804,66258.0,66257.0,0.016339]
[1722350181095,1.42746574,66258.0,66257.0,0.016339]
[1722350181663,1.47033697,66258.0,66257.0,0.016339]
[1722350181869,1.42746574,66258.0,66257.0,0.016339]
[1722350182069,1.28660804,66258.0,66257.0,0.016339]
[1722350182270,1.28660804,66258.0,66257.0,0.009339]
[1722350182675,1.28660804,66258.0,66257.0,0.011339]
[1722350182853,0.152925,66258.0,66257.0,0.011339]
[1722350183054,0.756625,66258.0,66257.0,0.011339]
[1722350183259,0.454775,66258.0,66257.0,0.009339]
[1722350183468,0.002,66258.0,66257.0,0.009339]
[1722350183672,0.002,66258.0,66257.0,0.016339]
[1722350183673,0.45748344,66258.0,66257.0,0.016339]
[1722350183909,0.45748344,66258.0,66257.0,0.009339]
[1722350184063,0.75933344,66258.0,66257.0,0.009339]
[1722350184269,0.45748344,66258.0,66257.0,0.015339]
[1722350184850,0.15563344,66258.0,66257.0,0.015339]
[1722350185068,0.60811648,66258.0,66257.0,0.015339]
[1722350185205,1.21181648,66258.0,66257.0,0.03227853]
[1722350185407,1.21181648,66258.0,66257.0,0.015339]
[1722350185615,1.21181648,66258.0,66257.0,0.009339]
[1722350185819,1.21181648,66258.0,66257.0,0.017339]
[1722350186197,1.33925813,66258.0,66257.0,0.017339]
[1722350186403,1.33925813,66258.0,66257.0,0.019339]
[1722350186642,1.21181648,66258.0,66257.0,0.019339]
[1722350186819,1.21181648,66258.0,66257.0,0.009339]
[1722350187030,1.21181648,66258.0,66257.0,0.017339]
[1722350188187,1.21181648,66258.0,66257.0,0.009339]
[1722350188595,1.51366648,66258.0,66257.0,0.009339]
[1722350188710,1.8077608,66258.0,66257.0,0.009339]
[1722350189363,2.42548006,66258.0,66257.0,0.009339]
[1722350189536,2.40548006,66258.0,66257.0,0.009339]
[1722350189885,2.16167432,66258.0,66257.0,0.011339]
[1722350190030,1.85982432,66258.0,66257.0,0.011339]
[1722350190230,1.85982432,66258.0,66257.0,0.009339]
[1722350190231,1.84982432,66258.0,66257.0,0.009339]
[1722350190445,1.86282432,66258.0,66257.0,0.009339]
[1722350191013,1.85011588,66258.0,66257.0,0.009339]
[1722350191822,1.86011588,66258.0,66257.0,0.009339]
[1722350192064,1.69942156,66258.0,66257.0,0.009339]
[1722350193120,1.61625771,66258.0,66257.0,0.009339]
[1722350193365,1.27230804,66258.0,66257.0,0.009339]
[1722350193756,1.26930804,66258.0,66257.0,0.009339]
[1722350194186,1.27230804,66258.0,66257.0,0.009339]
[1722350194544,1.7768604,66258.0,66257.0,0.009339]
[1722350195333,1.7668604,66258.0,66257.0,0.009339]
[1722350195706,1.7668604,66258.0,66251.0,0.00222053]
[1722350195707,0.002,66252.0,66251.0,0.00222053]
[1722350196010,0.786852,66238.0,66237.0,0.0015542]
[1722350196166,0.786852,66238.0,66232.0,0.0015542]
[1722350196167,0.484946,66233.0,66232.0,0.0015542]
[1722350196402,2.13923991,66233.0,66232.0,0.0015542]
[1722350196535,2.22644747,66233.0,66232.0,0.0015542]
[1722350196736,2.35714179,66233.0,66232.0,0.0015542]
[1722350196938,1.692824,66232.0,66213.0,0.009339]
[1722350197147,2.20735026,66232.0,66213.0,0.009339]
[1722350197348,1.90538226,66232.0,66213.0,0.009339]
[1722350197689,2.07679678,66232.0,66213.0,0.009339]
[1722350197830,2.0691377,66232.0,66213.0,0.009339]
[1722350198029,2.11125177,66232.0,66213.0,0.009339]
[1722350198235,2.0691377,66232.0,66213.0,0.009339]
[1722350198443,2.41321977,66232.0,66213.0,0.009339]
[1722350198685,2.21983202,66232.0,66213.0,0.009339]
[1722350198862,2.19983202,66232.0,66213.0,0.009339]
[1722350199063,1.39104,66223.0,66213.0,0.009339]
[1722350199246,2.48995602,66223.0,66213.0,0.009339]
[1722350199442,2.63032981,66223.0,66213.0,0.009339]
[1722350199845,1.57002395,66223.0,66213.0,0.009339]
[1722350200062,1.4461112,66223.0,66213.0,0.009339]
[1722350200270,1.4491112,66223.0,66222.0,0.2011]
[1722350200495,1.4491112,66223.0,66222.0,0.2001]
[1722350200496,1.7581202,66223.0,66222.0,0.2001]
[1722350200694,1.90881452,66223.0,66222.0,0.2001]
[1722350200921,1.95009929,66223.0,66222.0,0.2011]
[1722350201124,1.94009929,66223.0,66222.0,0.2011]
[1722350201324,1.79681452,66223.0,66222.0,0.2011]
[1722350201903,1.49480552,66223.0,66222.0,0.2011]
[1722350202106,1.49180552,66223.0,66222.0,0.2001]
[1722350202532,1.49680552,66223.0,66222.0,0.2001]
[1722350202915,1.79881452,66223.0,66222.0,0.2001]
[1722350203257,1.81481452,66223.0,66222.0,0.2011]
[1722350203492,1.83481452,66223.0,66222.0,0.2011]
[1722350203680,2.52427297,66223.0,66222.0,0.2011]
[1722350203890,2.22226397,66223.0,66222.0,0.2011]
[1722350204101,2.20226397,66223.0,66222.0,0.2011]
[1722350204301,2.22226397,66223.0,66222.0,0.2011]
[1722350204502,2.17861452,66223.0,66222.0,0.2011]
[1722350204641,1.93481452,66223.0,66222.0,0.202013]
[1722350204844,2.17861452,66223.0,66222.0,0.202013]
[1722350206785,2.48062352,66223.0,66222.0,0.202013]
[1722350206989,2.52393922,66223.0,66222.0,0.202013]
[1722350207195,2.59993922,66223.0,66222.0,0.202013]
[1722350207418,2.68479999,66223.0,66222.0,0.202013]
[1722350207851,2.98680899,66223.0,66222.0,0.202013]
[1722350208242,2.64193923,66223.0,66222.0,0.202013]
[1722350208459,2.64193923,66223.0,66193.0,0.00950107]
[1722350208460,1.422339,66194.0,66193.0,0.00950107]
[1722350208630,1.57297204,66194.0,66193.0,0.00950107]
[1722350208812,2.00676636,66194.0,66193.0,0.00950107]
[1722350209018,1.76296636,66194.0,66193.0,0.00950107]
[1722350209219,1.81508043,66194.0,66193.0,0.00950107]
[1722350209481,2.15996913,66194.0,66193.0,0.00950107]
[1722350209662,1.84782713,66194.0,66193.0,0.00950107]
[1722350209863,1.80508043,66194.0,66193.0,0.00950107]
[1722350210063,1.76296636,66194.0,66193.0,0.00950107]
[1722350210263,1.76296636,66194.0,66193.0,0.01050107]
[1722350210264,1.81471306,66194.0,66193.0,0.01050107]
[1722350210474,1.85682713,66194.0,66193.0,0.01050107]
[1722350210679,1.77196636,66194.0,66193.0,0.01050107]
[1722350211103,1.81408043,66194.0,66193.0,0.01050107]
[1722350211305,1.77196636,66194.0,66193.0,0.01050107]
[1722350211514,1.21913004,66194.0,66193.0,0.01050107]
[1722350211707,0.90798804,66194.0,66193.0,0.00950107]
[1722350212083,0.91698804,66194.0,66193.0,0.00950107]
[1722350212285,0.455213,66194.0,66193.0,0.00950107]
[1722350212544,0.11067396,66207.0,66193.0,0.09020107]
[1722350212545,0.002,66198.0,66193.0,0.09020107]
[1722350212840,0.002,66194.0,66193.0,0.24127407]
[1722350212982,0.002,66194.0,66193.0,0.30637407]
[1722350213188,0.002,66194.0,66193.0,0.15530107]
[1722350213386,0.002,66197.0,66194.0,0.0798]
[1722350213590,0.002,66198.0,66194.0,0.0798]
[1722350214424,0.002,66195.0,66194.0,0.230871]
[1722350214669,0.002,66195.0,66194.0,0.0798]
[1722350214866,0.302094,66205.0,66194.0,0.0798]
[1722350214867,0.002,66201.0,66194.0,0.0798]
[1722350215071,0.002,66197.0,66196.0,0.0762]
[1722350215294,0.002,66197.0,66196.0,0.0992]
[1722350215900,0.455192,66197.0,66196.0,0.0762]
[1722350216154,0.153064,66197.0,66196.0,0.0762]
[1722350216709,0.76002844,66197.0,66196.0,0.0762]
[1722350216913,0.15677244,66197.0,66196.0,0.0762]
[1722350217122,0.456192,66197.0,66196.0,0.0762]
[1722350217324,0.154064,66197.0,66196.0,0.0762]
[1722350217711,0.003,66197.0,66196.0,0.0762]
[1722350217924,0.154064,66197.0,66196.0,0.0762]
[1722350218172,0.76002844,66197.0,66196.0,0.0762]
[1722350218386,0.91066148,66197.0,66196.0,0.0762]
[1722350218631,1.21378948,66197.0,66196.0,0.0762]
[1722350218783,1.21278948,66197.0,66196.0,0.0762]
[1722350218947,0.91066148,66197.0,66196.0,0.0762]
[1722350219156,0.75832,66197.0,66196.0,0.0762]
[1722350219431,0.75732,66197.0,66196.0,0.0762]
[1722350219593,1.059448,66197.0,66196.0,0.0762]
[1722350219755,1.1663916,66197.0,66196.0,0.0762]
[1722350219955,1.61915264,66197.0,66196.0,0.0762]
[1722350220154,0.757355,66194.0,66193.0,0.00950107]
[1722350220550,1.21013004,66194.0,66193.0,0.00950107]
[1722350220927,1.51227204,66194.0,66193.0,0.00950107]
[1722350221303,1.21013004,66194.0,66193.0,0.00950107]
[1722350221966,0.90798804,66194.0,66193.0,0.00950107]
[1722350222319,0.154071,66194.0,66193.0,0.00950107]
[1722350222534,0.92439514,66194.0,66193.0,0.00950107]
[1722350222724,1.22653714,66194.0,66193.0,0.00950107]
[1722350222936,1.52867914,66194.0,66193.0,0.00950107]
[1722350225057,0.90798804,66194.0,66193.0,0.00950107]
[1722350225259,0.453213,66194.0,66193.0,0.09020107]
[1722350225432,0.758355,66194.0,66193.0,0.09020107]
[1722350225630,0.001,66194.0,66193.0,0.09020107]
[1722350225832,0.001,66194.0,66193.0,0.15340107]
[1722350225833,0.456213,66194.0,66193.0,0.15340107]
[1722350226042,0.456213,66194.0,66193.0,0.16198072]
[1722350226240,0.455213,66194.0,66193.0,0.16198072]
[1722350226422,0.456213,66194.0,66193.0,0.16198072]
[1722350227233,1.01503534,66194.0,66193.0,0.09878072]
[1722350227523,1.01503534,66194.0,66193.0,0.00950107]
[1722350227524,0.90898804,66194.0,66193.0,0.00950107]
[1722350227635,1.27673004,66194.0,66193.0,0.00950107]
[1722350227843,1.42742436,66194.0,66193.0,0.00950107]
[1722350228246,1.36182436,66194.0,66193.0,0.00950107]
[1722350228442,1.36082436,66194.0,66193.0,0.00950107]
[1722350228868,1.36182436,66194.0,66193.0,0.00950107]
[1722350229090,1.36082436,66194.0,66193.0,0.00950107]
[1722350229307,1.67396636,66194.0,66193.0,0.00950107]
[1722350229568,1.66396636,66194.0,66193.0,0.00950107]
[1722350229970,1.70748347,66194.0,66193.0,0.00950107]
[1722350230899,1.66396636,66194.0,66193.0,0.00950107]
[1722350231124,2.00971882,66194.0,66193.0,0.00950107]
[1722350231327,1.71757682,66194.0,66193.0,0.00950107]
[1722350231553,2.12351882,66194.0,66193.0,0.00950107]
[1722350231763,2.30411936,66194.0,66193.0,0.00950107]
[1722350231998,2.26365756,66194.0,66193.0,0.00950107]
[1722350232202,2.26265756,66194.0,66193.0,0.00950107]
[1722350232617,2.26365756,66194.0,66193.0,0.00950107]
[1722350232937,1.94151556,66194.0,66193.0,0.00950107]
[1722350233108,1.91261556,66194.0,66193.0,0.00950107]
[1722350233427,1.87147682,66194.0,66193.0,0.00950107]
[1722350233613,1.56933482,66194.0,66193.0,0.00950107]
[1722350233830,1.88047682,66194.0,66193.0,0.00950107]
[1722350233978,1.51343482,66194.0,66193.0,0.00950107]
[1722350234199,1.41432503,66194.0,66193.0,0.00950107]
[1722350234753,1.71646703,66194.0,66193.0,0.00950107]
[1722350234973,1.70746703,66194.0,66193.0,0.00950107]
[1722350235400,1.71646703,66194.0,66193.0,0.00950107]
[1722350235575,1.70746703,66194.0,66193.0,0.00950107]
[1722350236004,1.81446703,66194.0,66193.0,0.00950107]
[1722350236166,1.80746703,66194.0,66193.0,0.00950107]
[1722350236968,1.50532503,66194.0,66193.0,0.00950107]
[1722350237192,1.46382436,66194.0,66193.0,0.00950107]
[1722350237349,1.81103241,66194.0,66193.0,0.00950107]
[1722350238246,1.82103241,66194.0,66193.0,0.00950107]
[1722350238457,2.12017441,66194.0,66193.0,0.00950107]
[1722350238683,2.22687441,66194.0,66193.0,0.00950107]
[1722350239172,2.22387441,66194.0,66193.0,0.00950107]
[1722350239400,2.23287441,66194.0,66193.0,0.00950107]
[1722350239608,2.30447495,66194.0,66193.0,0.00950107]
[1722350239812,2.3833331,66194.0,66193.0,0.00950107]
[1722350240040,2.6944751,66194.0,66193.0,0.00950107]
[1722350240237,2.69378809,66194.0,66193.0,0.00950107]
[1722350240761,2.69378809,66194.0,66188.0,0.0005]
[1722350240762,0.183082,66189.0,66188.0,0.0005]
[1722350240962,0.183082,66189.0,66157.0,0.12382942]
[1722350240963,0.757675,66166.0,66158.0,0.0015542]
[1722350241164,1.21057804,66166.0,66157.0,0.0787]
[1722350241343,0.04684908,66175.0,66156.0,0.03025]
[1722350241344,0.002,66168.0,66165.0,0.144761]
[1722350241562,0.002,66168.0,66167.0,0.10895]
[1722350241563,0.153132,66168.0,66167.0,0.10895]
[1722350241805,0.45339,66168.0,66167.0,0.10895]
[1722350242020,0.002,66169.0,66167.0,0.11772457]
[1722350242223,0.002,66169.0,66168.0,0.11225]
[1722350242432,0.302226,66176.0,66169.0,0.082]
[1722350242433,0.002,66172.0,66169.0,0.082]
[1722350242694,0.002,66177.0,66171.0,0.082]